bitfinex-derivatives/quotes_SOLF0:USTF0_20250113
["timestamp","ask_amount","ask_price","bid_price","bid_amount"]
[1736768725036,1.6722,176.63,176.5,4.8231]
[1736768725240,2.8354,176.55,176.5,4.8231]
[1736768725542,7.36,176.55,176.43,22.22022895]
[1736768726247,1.6588,176.54,176.42,4.8231]
[1736768726439,7.36,176.55,176.42,4.8231]
[1736768726640,2.8352,176.56,176.51,2.836]
[1736768726845,7.36,176.61,176.5,22.22022895]
[1736768727047,7.36,176.61,176.42,4.8231]
[1736768727246,7.36,176.61,176.48,22.22022895]
[1736768727555,29.58022895,176.61,176.48,22.22022895]
[1736768727744,29.58022895,176.61,176.48,25.05652895]
[1736768727745,2.8355,176.55,176.48,25.05652895]
[1736768728046,2.8355,176.55,176.48,22.22022895]
[1736768728242,2.8351,176.57,176.49,1.6083]
[1736768728639,7.36,176.6,176.49,3.2782]
[1736768729343,7.36,176.6,176.51,22.22022895]
[1736768729747,3.3058,176.62,176.52,2.8357]
[1736768729943,7.36,176.61,176.51,22.22022895]
[1736768730342,2.835,176.58,176.53,2.8356]
[1736768730540,29.58022895,176.61,176.49,3.2782]
[1736768730742,2.8355,176.55,176.49,6.1145]
[1736768730938,29.58022895,176.61,176.49,6.1145]
[1736768731139,29.58022895,176.61,176.49,1.6083]
[1736768731644,2.8357,176.53,176.49,1.6083]
[1736768732746,2.8355,176.54,176.49,1.6083]
[1736768733142,7.36,176.57,176.49,1.6083]
[1736768733348,2.8352,176.56,176.49,1.6083]
[1736768733548,7.36,176.57,176.51,22.22022895]
[1736768733850,1.6588,176.62,176.51,22.22022895]
[1736768734046,1.6404,176.66,176.54,2.8354]
[1736768734247,7.36,176.65,176.54,22.22022895]
[1736768734647,2.8346,176.6,176.55,2.8353]
[1736768734847,3.2398,176.66,176.54,22.22022895]
[1736768735047,2.8341,176.63,176.58,2.8348]
[1736768735253,1.5994,176.66,176.57,22.22022895]
[1736768735453,7.36,176.67,176.58,1.5804]
[1736768735646,1.5994,176.73,176.58,3.2742]
[1736768735852,7.36,176.72,176.61,22.22022895]
[1736768736251,2.8332,176.69,176.63,2.834]
[1736768736960,1.5994,176.73,176.61,22.22022895]
[1736768736961,7.36,176.73,176.61,22.22022895]
[1736768737655,2.8331,176.69,176.62,2.8342]
[1736768738149,2.8331,176.69,176.59,1.6239]
[1736768738353,2.8331,176.69,176.63,2.834]
[1736768738552,1.6535,176.75,176.62,22.22022895]
[1736768738853,9.0135,176.75,176.65,22.22022895]
[1736768739062,2.8326,176.73,176.65,22.22022895]
[1736768739258,2.8326,176.73,176.67,2.8334]
[1736768739459,9.0135,176.75,176.65,22.22022895]
[1736768739753,216.22022895,176.85,176.69,2.8329]
[1736768739948,10.5911,176.81,176.69,2.8329]
[1736768740152,2.8321,176.76,176.69,2.8329]
[1736768741160,7.36,176.78,176.67,1.695]
[1736768741463,29.58022895,176.78,176.66,1.6455]
[1736768741661,2.8325,176.73,176.66,1.6455]
[1736768741864,2.8325,176.73,176.66,4.4789]
[1736768742057,29.58022895,176.78,176.66,1.6455]
[1736768742254,2.8322,176.75,176.68,2.8331]
[1736768742458,7.36,176.78,176.68,22.22022895]
[1736768742862,3.2311,176.81,176.7,2.8329]
[1736768743065,3.2311,176.81,176.68,22.22022895]
[1736768743066,7.36,176.8,176.68,22.22022895]
[1736768744461,2.8322,176.75,176.69,2.833]
[1736768744665,22.22022895,176.79,176.66,1.6455]
[1736768744862,2.8332,176.69,176.62,2.8342]
[1736768745161,7.36,176.71,176.6,1.695]
[1736768745365,3.3098,176.7,176.59,1.7134]
[1736768745762,22.22022895,176.67,176.55,3.3815]
[1736768746062,22.22022895,176.67,176.54,17.67578]
[1736768746259,2.834,176.64,176.54,17.67578]
[1736768746456,7.36,176.63,176.54,17.67578]
[1736768746963,7.36,176.63,176.54,20.51128]
[1736768747158,7.36,176.63,176.54,17.67578]
[1736768747354,10.194,176.63,176.54,17.67578]
[1736768747661,7.36,176.63,176.55,22.22022895]
[1736768748362,7.36,176.63,176.54,17.67578]
[1736768748560,2.8345,176.6,176.54,17.67578]
[1736768748965,1.5836,176.62,176.54,17.67578]
[1736768749160,4.4178,176.62,176.55,2.8352]
[1736768749464,1.5836,176.62,176.54,17.67578]
[1736768749663,7.36,176.63,176.55,22.22022895]
[1736768750465,7.36,176.63,176.54,17.67578]
[1736768750664,2.8345,176.61,176.54,17.67578]
[1736768750863,7.36,176.63,176.54,17.67578]
[1736768751563,7.36,176.63,176.55,22.22022895]
[1736768752263,7.36,176.63,176.54,17.67578]
[1736768752669,2.8345,176.61,176.54,17.67578]
[1736768752869,7.36,176.63,176.54,17.67578]
[1736768753170,2.8346,176.6,176.54,17.67578]
[1736768753467,2.8346,176.6,176.54,20.51118]
[1736768753866,2.8344,176.61,176.55,2.8353]
[1736768754062,7.36,176.63,176.55,22.22022895]
[1736768754470,2.8345,176.6,176.55,22.22022895]
[1736768754669,2.8345,176.6,176.54,17.67578]
[1736768755372,2.8347,176.59,176.54,17.67578]
[1736768755564,7.36,176.63,176.54,17.67578]
[1736768755873,2.8348,176.59,176.54,17.67578]
[1736768756072,7.36,176.66,176.55,22.22022895]
[1736768756366,2.8346,176.6,176.55,22.22022895]
[1736768756567,29.58022895,176.66,176.54,17.67578]
[1736768757171,2.8349,176.58,176.54,17.67578]
[1736768757473,22.22022895,176.63,176.54,17.67578]
[1736768757669,3.2874,176.62,176.54,17.67578]
[1736768758078,1.7125,176.61,176.54,17.67578]
[1736768759062,2.8353,176.55,176.54,17.67578]
[1736768759869,2.8353,176.55,176.54,8.94218]
[1736768760067,22.22022895,176.57,176.43,22.22022895]
[1736768760673,2.8357,176.53,176.43,22.22022895]
[1736768760974,22.22022895,176.54,176.4,22.22022895]
[1736768761168,3.2809,176.52,176.4,22.22022895]
[1736768761368,22.22022895,176.51,176.37,22.22022895]
[1736768761568,7.36,176.5,176.35,7.5945]
[1736768761771,2.8375,176.42,176.35,7.5945]
[1736768761972,7.36,176.5,176.4,22.22022895]
[1736768762267,1.5749,176.52,176.46,22.22022895]
[1736768762472,2.8358,176.53,176.46,22.22022895]
[1736768762772,7.36,176.54,176.49,22.22022895]
[1736768762970,99.28362903,176.62,176.49,22.22022895]
[1736768763177,100.85122903,176.62,176.49,22.22022895]
[1736768763472,2.8347,176.59,176.52,22.22022895]
[1736768763668,8.9276,176.62,176.52,22.22022895]
[1736768763869,1.5676,176.62,176.52,22.22022895]
[1736768764074,8.9276,176.62,176.52,22.22022895]
[1736768764274,7.36,176.62,176.55,22.22022895]
[1736768764578,22.22022895,176.7,176.55,22.22022895]
[1736768764876,7.36,176.69,176.58,22.22022895]
[1736768765069,7.36,176.69,176.61,22.22022895]
[1736768765266,4.4003,176.71,176.62,2.8342]
[1736768765468,104.66,176.74,176.64,36.04625084]
[1736768765670,104.66,176.74,176.59,3.3735]
[1736768765671,104.66,176.74,176.62,1.5836]
[1736768767468,104.66,176.74,176.64,36.04625084]
[1736768768071,1.5676,176.79,176.7,36.04625084]
[1736768769165,1.5676,176.79,176.67,36.04625084]
[1736768770076,1.5676,176.79,176.7,36.04625084]
[1736768771367,1.1310298,176.83,176.7,36.04625084]
[1736768771571,7.34,176.82,176.7,36.04625084]
[1736768771767,1.1310298,176.83,176.7,36.04625084]
[1736768771967,7.34,176.82,176.7,36.04625084]
[1736768773371,7.34,176.82,176.69,1.6988]
[1736768774578,36.04625084,176.8,176.69,1.6988]
[1736768774778,36.04625084,176.8,176.68,1.6099]
[1736768776081,36.04625084,176.77,176.63,1.7155]
[1736768776380,36.04625084,176.74,176.63,1.7155]
[1736768776580,9.0491,176.73,176.58,36.04625084]
[1736768776781,9.0491,176.73,176.59,1.6419]
[1736768777170,1.1310298,176.83,176.69,36.04625084]
[1736768777378,1.6513,176.82,176.72,36.04625084]
[1736768777578,1.6513,176.82,176.69,36.04625084]
[1736768778780,7.34,176.81,176.69,36.04625084]
[1736768779381,7.34,176.8,176.69,36.04625084]
[1736768779582,1.6513,176.82,176.69,36.04625084]
[1736768779777,7.34,176.8,176.74,36.04625084]
[1736768780178,1.6513,176.82,176.74,38.87835084]
[1736768780387,91.92362903,176.89,176.77,36.04625084]
[1736768780587,7.34,176.87,176.8,36.04625084]
[1736768780781,7.34,176.88,176.8,38.87755084]
[1736768781482,7.34,176.88,176.8,36.04625084]
[1736768781987,99.26362903,176.89,176.83,36.04625084]
[1736768782181,91.92362903,176.89,176.83,36.04625084]
[1736768783082,91.92362903,176.89,176.8,37.70245084]
[1736768783785,91.92362903,176.89,176.79,1.7037]
[1736768783979,91.92362903,176.89,176.77,36.04625084]
[1736768784577,36.04625084,176.88,176.74,36.04625084]
[1736768784982,36.04625084,176.85,176.7,5.0102]
[1736768785182,1.7083,176.84,176.7,3.354]
[1736768785382,36.04625084,176.82,176.66,36.04625084]
[1736768785584,7.34,176.81,176.66,36.04625084]
[1736768786585,36.04625084,176.79,176.66,36.04625084]
[1736768787188,36.04625084,176.76,176.63,36.04625084]
[1736768787389,1.5883,176.75,176.62,1.6266]
[1736768787781,1.7051,176.74,176.62,1.6266]
[1736768787985,7.34,176.73,176.62,1.6266]
[1736768788386,2.8337,176.67,176.62,1.6266]
[1736768789489,2.8337,176.66,176.62,1.6266]
[1736768789888,7.34,176.72,176.63,36.04625084]
[1736768790087,1.7051,176.74,176.63,36.04625084]
[1736768790392,1.7051,176.74,176.66,36.04625084]
[1736768790587,1.5883,176.81,176.66,36.04625084]
[1736768790786,7.34,176.8,176.67,2.8335]
[1736768791281,7.34,176.8,176.69,36.04625084]
[1736768791786,1.6901,176.81,176.72,36.04625084]
[1736768792087,7.34,176.8,176.73,3.3403]
[1736768792491,7.34,176.8,176.73,1.6938]
[1736768792788,7.34,176.8,176.7,1.6808]
[1736768793183,7.34,176.8,176.7,3.3746]
[1736768794181,7.34,176.8,176.7,1.6938]
[1736768794382,36.04625084,176.79,176.66,36.04625084]
[1736768794584,36.04625084,176.79,176.67,1.6875]
[1736768795793,7.34,176.8,176.68,2.8333]
[1736768795992,7.34,176.8,176.69,36.04625084]
[1736768796191,7.34,176.8,176.7,1.6405]
[1736768798687,7.34,176.8,176.72,36.04625084]
[1736768799193,7.34,176.81,176.72,36.04625084]
[1736768800186,7.34,176.81,176.71,1.5821]
[1736768801788,7.34,176.81,176.72,2.8328]
[1736768802091,7.34,176.81,176.71,1.5821]
[1736768802490,7.34,176.81,176.7,1.6405]
[1736768803099,22.62595762,176.81,176.7,1.6405]
[1736768804096,114.54958665,176.81,176.7,1.6405]
[1736768804795,7.34,176.8,176.7,1.6405]
[1736768804995,7.34,176.8,176.7,3.3277]
[1736768805196,36.04625084,176.79,176.67,4.521]
[1736768805397,36.04625084,176.79,176.67,1.6875]
[1736768805695,36.04625084,176.79,176.68,2.8334]
[1736768806195,15.28595762,176.81,176.69,36.04625084]
[1736768806495,99.26362903,176.8,176.72,2.8328]
[1736768806696,99.26362903,176.8,176.7,1.5609]
[1736768806893,7.34,176.8,176.7,1.5609]
[1736768807286,29.51669533,176.8,176.7,1.5609]
[1736768807995,29.51669533,176.8,176.7,4.394]
[1736768808588,22.17669533,176.8,176.7,4.394]
[1736768808895,7.34,176.79,176.7,1.5609]
[1736768810703,7.34,176.79,176.66,22.17669533]
[1736768810704,22.17669533,176.77,176.63,22.17669533]
[1736768811003,22.17669533,176.74,176.62,6.2372]
[1736768811196,22.17669533,176.74,176.62,3.4028]
[1736768811397,1.6079,176.73,176.63,2.8342]
[1736768811698,1.6079,176.73,176.62,3.4028]
[1736768811902,1.6079,176.73,176.64,2.8341]
[1736768812898,1.6079,176.73,176.62,3.4028]
[1736768813095,22.17669533,176.71,176.58,43.69309324]
[1736768813295,7.34,176.7,176.55,22.17669533]
[1736768813499,7.34,176.7,176.59,2.8348]
[1736768813703,7.34,176.7,176.55,22.17669533]
[1736768814405,2.834,176.65,176.55,22.17669533]
[1736768814804,22.17669533,176.68,176.55,22.17669533]
[1736768815005,2.8344,176.63,176.55,22.17669533]
[1736768815802,2.8344,176.63,176.58,2.8351]
[1736768816004,2.8345,176.62,176.58,2.8351]
[1736768816908,2.8343,176.63,176.58,2.8351]
[1736768817512,1.7137,176.67,176.58,2.8351]
[1736768817806,1.7137,176.67,176.56,2.8354]
[1736768818216,2.8348,176.61,176.56,2.8354]
[1736768818409,1.7137,176.67,176.53,5.0429]
[1736768818610,1.7137,176.67,176.58,2.835]
[1736768819011,222.0,176.59,176.37,17.05]
[1736768819207,22.17669533,176.38,176.3,32.82825967]
[1736768819510,22.17669533,176.4,176.3,27.03535967]
[1736768819511,22.17669533,176.33,176.3,27.03535967]
[1736768820213,22.17669533,176.33,176.23,64.64896316]
[1736768820214,7.34,176.32,176.23,64.64896316]
[1736768820409,22.17669533,176.3,176.23,64.64896316]
[1736768820610,25.01639533,176.3,176.23,64.64896316]
[1736768820813,191.50756048,176.24,176.23,64.64896316]
[1736768821214,91.67625818,176.26,176.23,64.64896316]
[1736768821613,91.67625818,176.25,176.23,64.64896316]
[1736768821808,152.79376364,176.27,176.18,1.6754]
[1736768822012,32.89626966,176.27,176.18,1.6754]
[1736768822410,7.34,176.28,176.18,1.6754]
[1736768824718,10.18,176.28,176.18,1.6754]
[1736768824924,7.34,176.28,176.18,1.6754]
[1736768825918,91.19333223,176.34,176.21,36.24119493]
[1736768825919,94.03243223,176.34,176.21,36.24119493]
[1736768826119,7.34,176.33,176.21,36.24119493]
[1736768826516,7.34,176.32,176.21,36.24119493]
[1736768826717,7.34,176.32,176.21,39.08219493]
[1736768827013,7.34,176.32,176.21,36.24119493]
[1736768828123,7.34,176.35,176.25,36.24119493]
[1736768828325,91.19333223,176.39,176.28,36.24119493]
[1736768828627,7.34,176.4,176.29,1.6576]
[1736768829218,7.34,176.42,176.31,36.24119493]
[1736768829918,7.34,176.42,176.29,1.6576]
[1736768830618,7.34,176.42,176.32,2.8393]
[1736768830823,7.34,176.42,176.29,1.6576]
[1736768831323,7.34,176.42,176.34,2.839]
[1736768831527,7.34,176.42,176.29,1.6576]
[1736768831715,36.24119493,176.43,176.29,1.6576]
[1736768831920,36.24119493,176.43,176.34,2.8389]
[1736768832224,7.34,176.42,176.34,2.8389]
[1736768832424,7.34,176.42,176.29,1.6576]
[1736768834124,7.34,176.42,176.35,2.8388]
[1736768834721,7.34,176.42,176.36,2.8386]
[1736768835325,7.34,176.42,176.31,36.24119493]
[1736768835623,36.24119493,176.46,176.31,36.24119493]
[1736768835823,7.34,176.46,176.34,36.24119493]
[1736768836023,7.34,176.46,176.39,2.8381]
[1736768837126,43.58119493,176.46,176.38,2.8383]
[1736768837325,43.58119493,176.46,176.31,36.24119493]
[1736768838218,43.58119493,176.46,176.29,1.6576]
[1736768838219,43.58119493,176.46,176.34,36.24119493]
[1736768838421,36.24119493,176.49,176.37,36.24119493]
[1736768838726,36.24119493,176.49,176.38,3.3175]
[1736768839127,36.24119493,176.46,176.38,3.3175]
[1736768839323,36.24119493,176.46,176.38,4.5053]
[1736768839923,36.24119493,176.46,176.38,1.667]
[1736768841129,36.24119493,176.49,176.38,1.667]
[1736768841526,43.58119493,176.49,176.39,1.6572]
[1736768841828,43.58119493,176.49,176.44,2.8372]
[1736768842431,36.24119493,176.49,176.44,2.8372]
[1736768842730,43.58119493,176.49,176.44,2.8372]
[1736768842922,43.58119493,176.49,176.39,1.6572]
[1736768843428,7.34,176.49,176.39,1.6572]
[1736768844226,22.24908486,176.5,176.47,2.8367]
[1736768844423,7.34,176.51,176.47,2.8367]
[1736768844621,22.24908486,176.53,176.39,1.6572]
[1736768844828,7.34,176.55,176.51,2.8361]
[1736768845027,7.34,176.55,176.42,1.6309]
[1736768845424,7.34,176.55,176.53,2.8359]
[1736768845633,7.34,176.55,176.44,22.24908486]
[1736768845828,7.34,176.55,176.51,2.8362]
[1736768846530,7.34,176.55,176.52,2.8361]
[1736768847235,29.58908486,176.59,176.54,2.8356]
[1736768847828,7.34,176.59,176.54,2.8356]
[1736768848230,7.34,176.59,176.55,2.8356]
[1736768848534,22.24908486,176.62,176.5,22.24908486]
[1736768848535,7.34,176.62,176.5,22.24908486]
[1736768848723,91.19333223,176.63,176.58,2.8351]
[1736768849331,91.19333223,176.63,176.57,2.8352]
[1736768850926,91.19333223,176.63,176.5,22.24908486]
[1736768851133,91.19333223,176.63,176.53,22.24908486]
[1736768852135,2.8342,176.64,176.53,22.24908486]
[1736768852332,113.44241709,176.65,176.53,22.24908486]
[1736768852637,22.24908486,176.62,176.5,22.24908486]
[1736768853236,25.08358486,176.62,176.57,2.8352]
[1736768853428,113.44241709,176.65,176.5,22.24908486]
[1736768854132,22.24908486,176.62,176.5,22.24908486]
[1736768854337,2.8351,176.58,176.48,3.2401]
[1736768854534,22.24908486,176.62,176.48,3.2401]
[1736768854731,22.24908486,176.59,176.48,3.2401]
[1736768854930,22.24908486,176.56,176.48,1.6431]
[1736768855135,22.24908486,176.56,176.43,1.6682]
[1736768855336,22.24908486,176.56,176.43,3.3848]
[1736768856039,22.24908486,176.56,176.46,2.8371]
[1736768856242,22.24908486,176.53,176.46,2.8371]
[1736768856638,22.24908486,176.53,176.47,2.837]
[1736768856840,22.24908486,176.53,176.43,3.3848]
[1736768857342,20.95540794,176.52,176.43,3.3848]
[1736768857845,91.19333223,176.51,176.43,3.3848]
[1736768858046,2.8365,176.5,176.46,2.8372]
[1736768858339,2.8365,176.5,176.43,3.3848]
[1736768858539,94.02983223,176.5,176.43,3.3848]
[1736768858741,94.02983223,176.5,176.45,2.8372]
[1736768858942,94.02983223,176.5,176.43,3.3848]
[1736768859737,94.02983223,176.5,176.45,2.8372]
[1736768859933,94.02983223,176.5,176.43,3.3848]
[1736768860137,91.19333223,176.49,176.43,3.3848]
[1736768860337,91.19333223,176.49,176.47,2.8369]
[1736768860733,91.19333223,176.49,176.43,3.3848]
[1736768860937,91.19333223,176.49,176.48,2.8369]
[1736768861139,76.16233223,176.49,176.48,2.8369]
[1736768861339,76.16233223,176.49,176.43,25.63388486]
[1736768861541,76.16233223,176.49,176.43,3.3848]
[1736768861740,76.16233223,176.49,176.47,2.8369]
[1736768862143,76.16233223,176.49,176.43,3.3848]
[1736768862445,2.8366,176.5,176.43,3.3848]
[1736768862838,2.8364,176.51,176.46,2.8372]
[1736768863034,175.0428485,176.54,176.46,2.8372]
[1736768863342,152.79376364,176.54,176.46,2.8372]
[1736768863543,2.8366,176.51,176.46,2.8372]
[1736768864343,200.92866874,176.55,176.43,3.3848]
[1736768864546,200.92866874,176.55,176.43,25.63388486]
[1736768864746,2.8362,176.53,176.48,2.8368]
[1736768865147,48.1349051,176.55,176.43,25.63388486]
[1736768865640,2.836,176.53,176.43,25.63388486]
[1736768865845,2.836,176.53,176.49,2.8364]
[1736768866344,2.836,176.53,176.43,23.96568486]
[1736768866741,2.836,176.53,176.49,2.8364]
[1736768867044,48.1349051,176.55,176.43,23.96568486]
[1736768867548,200.92866874,176.55,176.43,23.96568486]
[1736768867736,2.8359,176.53,176.43,23.96568486]
[1736768867939,200.92866874,176.55,176.43,23.96568486]
[1736768868246,200.92866874,176.55,176.41,1.6073]
[1736768868442,22.24908486,176.53,176.41,1.6073]
[1736768868746,2.8368,176.48,176.44,2.8373]
[1736768869644,2.8366,176.49,176.37,1.6488]
[1736768870047,29.56908486,176.5,176.37,1.6488]
[1736768870647,2.8369,176.48,176.37,1.6488]
[1736768871549,95.13447899,176.48,176.37,1.6488]
[1736768871746,92.29757899,176.48,176.37,1.6488]
[1736768873142,2.837,176.46,176.43,2.8375]
[1736768873748,2.8372,176.46,176.4,2.8379]
[1736768873949,112.91484192,176.49,176.36,22.24908486]
[1736768874243,92.29757899,176.48,176.36,22.24908486]
[1736768874842,23.45396293,176.48,176.44,2.8372]
[1736768875247,23.45396293,176.48,176.36,22.24908486]
[1736768875442,2.8367,176.48,176.44,2.8372]
[1736768875640,92.29757899,176.49,176.36,22.24908486]
[1736768876142,92.29757899,176.49,176.44,2.8372]
[1736768876343,112.91484192,176.49,176.44,2.8372]
[1736768876543,2.8368,176.48,176.44,2.8372]
[1736768876939,2.8368,176.48,176.36,22.24908486]
[1736768877352,99.61757899,176.5,176.36,22.24908486]
[1736768877557,2.8366,176.49,176.45,2.8372]
[1736768878251,92.29757899,176.5,176.39,22.24908486]
[1736768878447,92.29757899,176.5,176.42,22.24908486]
[1736768878848,2.8362,176.51,176.47,2.8367]
[1736768879454,92.29757899,176.52,176.42,22.24908486]
[1736768880050,92.29757899,176.52,176.39,22.24908486]
[1736768880255,92.29757899,176.51,176.36,29.56908486]
[1736768880446,2.837,176.46,176.42,2.8376]
[1736768880848,22.24908486,176.5,176.36,22.24908486]
[1736768881051,2.8375,176.44,176.36,22.24908486]
[1736768881352,92.29757899,176.49,176.36,22.24908486]
[1736768881549,2.8375,176.44,176.39,2.838]
[1736768881749,8.875,176.48,176.36,22.24908486]
[1736768881949,92.29757899,176.47,176.36,22.24908486]
[1736768882147,2.8376,176.43,176.36,22.24908486]
[1736768882352,1.6266,176.46,176.34,1.5965]
[1736768882943,92.29757899,176.45,176.34,1.5965]
[1736768883947,17.04,176.34,176.03,58.91388518]
[1736768884255,22.24908486,176.26,176.09,22.24908486]
[1736768884455,22.24908486,176.23,176.09,22.24908486]
[1736768884650,1.5729,176.22,176.09,22.24908486]
[1736768885654,1.5729,176.22,176.1,2.8428]
[1736768885949,1.5729,176.22,176.09,22.24908486]
[1736768886355,1.5729,176.22,176.12,22.24908486]
[1736768887147,1.5729,176.22,176.14,2.8421]
[1736768887352,1.5729,176.22,176.12,22.24908486]
[1736768887851,1.5729,176.22,176.13,2.8422]
[1736768888056,1.5729,176.22,176.12,22.24908486]
[1736768890854,1.5729,176.22,176.15,2.842]
[1736768891552,1.5729,176.22,176.12,22.24908486]
[1736768892359,1.5729,176.22,176.15,2.8419]
[1736768892958,1.5729,176.22,176.12,22.24908486]
[1736768893155,1.5729,176.22,176.16,2.8418]
[1736768893958,1.5729,176.22,176.12,22.24908486]
[1736768894159,1.5729,176.22,176.17,2.8416]
[1736768894765,1.5729,176.22,176.12,22.24908486]
[1736768895560,1.5729,176.22,176.17,2.8416]
[1736768895759,1.5729,176.22,176.12,22.24908486]
[1736768896358,1.5729,176.22,176.06,4.6852]
[1736768896359,1.5729,176.22,176.09,22.24908486]
[1736768896958,3.1985,176.22,176.17,2.8416]
[1736768897158,3.1985,176.22,176.09,22.24908486]
[1736768897159,7.34,176.21,176.09,22.24908486]
[1736768897660,7.34,176.21,176.12,2.8424]
[1736768897954,7.34,176.21,176.09,22.24908486]
[1736768898160,7.34,176.21,176.18,2.8415]
[1736768900263,7.34,176.21,176.09,22.24908486]
[1736768900464,7.34,176.21,176.12,22.24908486]
[1736768900658,3.1985,176.22,176.12,22.24908486]
[1736768900860,3.1985,176.22,176.07,1.7101]
[1736768900861,10.5385,176.22,176.15,22.24908486]
[1736768901359,10.5385,176.22,176.2,2.8411]
[1736768901561,14.61785126,176.3,176.15,22.24908486]
[1736768901760,7.34,176.29,176.16,1.6801]
[1736768901962,7.34,176.29,176.16,23.92918486]
[1736768902367,10.1799,176.29,176.23,2.8407]
[1736768902662,7.34,176.29,176.23,2.8407]
[1736768902965,29.58908486,176.29,176.16,22.24908486]
[1736768903166,29.58908486,176.29,176.13,22.24908486]
[1736768903471,22.24908486,176.26,176.13,22.24908486]
[1736768903766,2.8405,176.25,176.13,22.24908486]
[1736768904261,2.8405,176.25,176.19,2.8413]
[1736768904466,13.39125126,176.3,176.13,22.24908486]
[1736768904665,7.34,176.29,176.13,22.24908486]
[1736768905367,2.8401,176.28,176.23,2.8407]
[1736768905671,7.34,176.27,176.23,2.8407]
[1736768906464,7.34,176.27,176.16,22.24908486]
[1736768906666,7.34,176.26,176.16,22.24908486]
[1736768906864,16.23085126,176.3,176.19,22.24908486]
[1736768907067,7.34,176.29,176.19,22.24908486]
[1736768907372,7.34,176.29,176.25,2.8403]
[1736768907663,7.34,176.29,176.2,1.5591]
[1736768908773,7.34,176.29,176.16,22.24908486]
[1736768909174,2.8405,176.25,176.19,2.8413]
[1736768909367,7.34,176.29,176.14,1.5707]
[1736768910270,22.24908486,176.27,176.14,1.5707]
[1736768911072,2.8408,176.23,176.17,2.8416]
[1736768911369,27.83560233,176.29,176.16,22.24908486]
[1736768911668,2.8403,176.26,176.2,2.8411]
[1736768913173,22.24908486,176.3,176.16,22.24908486]
[1736768913477,2.8401,176.27,176.16,22.24908486]
[1736768913666,2.8401,176.27,176.21,2.8409]
[1736768913869,2.8404,176.26,176.16,22.24908486]
[1736768914073,7.34,176.29,176.16,22.24908486]
[1736768914582,2.8408,176.23,176.16,22.24908486]
[1736768914870,7.34,176.29,176.14,1.5707]
[1736768915077,22.24908486,176.27,176.14,1.5707]
[1736768915479,22.24908486,176.27,176.16,2.8418]
[1736768915774,22.24908486,176.27,176.14,1.5707]
[1736768916187,22.24908486,176.27,176.15,2.8419]
[1736768916377,22.24908486,176.24,176.1,1.5591]
[1736768916678,2.8417,176.17,176.12,2.8425]
[1736768916877,10.1817,176.17,176.12,2.8425]
[1736768917678,7.34,176.17,176.08,22.24908486]
[1736768918380,7.34,176.17,176.1,2.8428]
[1736768918673,7.34,176.17,176.02,22.24908486]
[1736768918872,22.24908486,176.09,176.0,7.8443]
[1736768919073,7.34,176.08,176.0,5.0]
[1736768919274,10.539,176.08,176.0,5.0]
[1736768919777,12.242,176.08,176.0,5.0]
[1736768920176,22.24908486,176.06,176.0,5.0]
[1736768920377,2.8437,176.05,176.0,5.0]
[1736768920575,22.24908486,176.06,176.0,5.0]
[1736768920980,22.24908486,176.06,175.82,62.31687627]
[1736768921282,22.24908486,176.06,175.88,22.24908486]
[1736768921578,2.8443,176.01,175.93,2.8456]
[1736768921780,12.242,176.08,175.93,2.8456]
[1736768921781,7.34,176.0,175.93,2.8456]
[1736768922179,7.34,176.0,175.91,22.24908486]
[1736768922372,4.902,176.08,175.94,22.24908486]
[1736768922576,7.34,176.07,175.94,22.24908486]
[1736768922879,7.34,176.07,175.97,22.24908486]
[1736768923181,7.34,176.07,175.98,1.6349]
[1736768923383,7.34,176.07,176.01,2.8443]
[1736768923572,7.34,176.07,175.98,3.2294]
[1736768923772,7.34,176.09,175.98,3.2294]
[1736768923979,7.34,176.1,176.06,2.8435]